fUST/lending_fUST_20250313
["ID","MTS","AMOUNT","RATE_DAILY","PERIOD"]
[356023057,1741803073009,-2905.55,0.00023287,2]
[356023058,1741803073018,-773.13,0.00023287,2]
[356023059,1741803073028,-1000.0,0.00023287,7]
[356023060,1741803073038,-722.49,0.00023287,2]
[356023061,1741803073048,-703.11,0.00023287,2]
[356023062,1741803073064,-4847.4,0.00023287,2]
[356023063,1741803073073,-987.14,0.00023287,2]
[356023064,1741803073083,-1469.23,0.00023287,2]
[356023065,1741803073093,-500.0,0.00023287,2]
[356023066,1741803073102,-1198.86,0.00023287,2]
[356023067,1741803073112,-500.0,0.00023287,2]
[356023068,1741803073121,-500.0,0.00023287,2]
[356023069,1741803073131,-1433.14,0.00023287,2]
[356023070,1741803073140,-811.21,0.00023287,2]
[356023071,1741803073149,-500.0,0.00023287,2]
[356023072,1741803073159,-32549.59,0.00023287,2]
[356023073,1741803073171,-500.0,0.00023287,2]
[356023074,1741803073184,-671.34,0.00023287,2]
[356023075,1741803073194,-500.0,0.00023287,2]
[356023076,1741803073204,-716.39,0.00023287,2]
[356023077,1741803073213,-660.16,0.00023287,2]
[356023078,1741803073223,-1515.81,0.00023287,2]
[356023079,1741803073233,-500.0,0.00023287,2]
[356023080,1741803073243,-500.0,0.00023287,2]
[356023081,1741803073254,-2047.45,0.00023287,2]
[356023082,1741803073264,-500.0,0.00023287,2]
[356023083,1741803073273,-500.0,0.00023287,2]
[356023084,1741803073282,-500.0,0.00023287,2]
[356023085,1741803073291,-500.0,0.00023287,2]
[356023086,1741803073301,-205.41563832,0.00023287,2]
[356023087,1741803073311,-500.0,0.00023287,2]
[356023088,1741803073320,-150.35,0.00023287,2]
[356023089,1741803073330,-150.35,0.00023287,2]
[356023090,1741803073340,-150.35,0.00023287,2]
[356023091,1741803073349,-152.64740648,0.00023287,2]
[356023092,1741803073359,-2437.52,0.00023287,2]
[356023093,1741803073368,-777.73,0.00023287,2]
[356023094,1741803073378,-500.0,0.00023287,2]
[356023095,1741803073387,-500.0,0.00023287,2]
[356023096,1741803073397,-500.0,0.00023287,2]
[356023097,1741803073406,-500.0,0.00023287,2]
[356023098,1741803073416,-500.0,0.00023287,2]
[356023099,1741803073425,-500.0,0.00023287,2]
[356023100,1741803073434,-500.0,0.00023287,2]
[356023101,1741803073443,-500.0,0.00023287,2]
[356023102,1741803073452,-500.0,0.00023287,2]
[356023103,1741803073462,-500.0,0.00023287,2]
[356023104,1741803073471,-960.55487324,0.00023287,2]
[356023105,1741803073481,-727.91,0.00023287,2]
[356023106,1741803073490,-1234.15,0.00023287,2]
[356023107,1741803073500,-2110.0,0.00023287,2]
[356023108,1741803073510,-927.27,0.00023287,2]
[356023109,1741803073520,-1043.03,0.00023287,2]
[356023110,1741803073530,-2110.0,0.00023287,2]
[356023111,1741803073539,-2110.0,0.00023287,2]
[356023112,1741803073549,-2110.0,0.00023287,2]
[356023113,1741803073559,-2110.0,0.00023287,2]
[356023114,1741803073568,-2110.0,0.00023287,2]
[356023115,1741803073578,-2110.0,0.00023287,2]
[356023116,1741803073588,-2110.0,0.00023287,2]
[356023117,1741803073598,-500.0,0.00023287,2]
[356023118,1741803073608,-2110.0,0.00023287,2]
[356023119,1741803073617,-500.0,0.00023287,2]
[356023120,1741803073627,-2110.0,0.00023287,2]
[356023121,1741803073636,-2110.0,0.00023287,2]
[356023122,1741803073646,-2110.0,0.00023287,2]
[356023123,1741803073655,-2110.0,0.00023287,2]
[356023124,1741803073664,-2110.0,0.00023287,2]
[356023125,1741803073674,-500.0,0.00023287,2]
[356023126,1741803073683,-2110.0,0.00023287,2]
[356023127,1741803073692,-2110.0,0.00023287,2]
[356023128,1741803073702,-2110.0,0.00023287,2]
[356023129,1741803073712,-2110.0,0.00023287,2]
[356023130,1741803073721,-2110.0,0.00023287,2]
[356023131,1741803073731,-2113.94285347,0.00023287,2]
[356023132,1741803073742,-683.89,0.00023287,2]
[356023133,1741803073753,-150.35,0.00023287,2]
[356023134,1741803073763,-150.35,0.00023287,2]
[356023135,1741803073773,-150.35,0.00023287,2]
[356023136,1741803073782,-1257.94,0.00023287,2]
[356023137,1741803073794,-285.73229852,0.00023287,2]
[356023138,1741803073805,-150.35,0.00023287,2]
[356023139,1741803073814,-500.0,0.00023287,2]
[356023140,1741803073824,-500.0,0.00023287,2]
[356023141,1741803073834,-500.0,0.00023287,2]
[356023142,1741803073843,-500.0,0.00023287,2]
[356023143,1741803073853,-500.0,0.00023287,2]
[356023144,1741803073863,-500.0,0.00023287,2]
[356023145,1741803073873,-500.0,0.00023287,2]
[356023146,1741803073883,-500.0,0.00023287,2]
[356023147,1741803073892,-522.19714049,0.00023287,2]
[356023148,1741803073902,-500.0,0.00023287,2]
[356023149,1741803073912,-500.0,0.00023287,2]
[356023150,1741803073921,-500.0,0.00023287,2]
[356023151,1741803073931,-500.0,0.00023287,2]
[356023152,1741803073942,-500.0,0.00023287,2]
[356023153,1741803073951,-500.0,0.00023287,2]
[356023154,1741803073961,-541.37025594,0.00023287,2]
[356023155,1741803073971,-590.27136488,0.00023287,2]
[356023156,1741803073981,-565.25,0.00023287,2]
[356023157,1741803073991,-1047.77,0.00023287,2]
[356023158,1741803074000,-500.0,0.00023287,2]
[356023159,1741803074010,-3477.23,0.00023287,2]
[356023160,1741803074021,-740.15,0.00023287,2]
[356023161,1741803074043,-154.18543258,0.00023287,2]
[356023162,1741803074065,-500.0,0.00023287,2]
[356023163,1741803074075,-160.72015635,0.00023287,2]
[356023164,1741803074085,-3349.83,0.00023287,2]
[356023165,1741803074094,-150.35,0.00023287,2]
[356023166,1741803074104,-150.35,0.00023287,2]
[356023167,1741803074114,-199.37814789,0.00023287,2]
[356023168,1741803074124,-1141.52,0.00023287,2]
[356023169,1741803074133,-1151.66,0.00023287,2]
[356023170,1741803074143,-2458.65,0.00023287,2]
[356023171,1741803074153,-621.24802495,0.00023287,2]
[356023172,1741803074165,-151.69940185,0.00023287,2]
[356023173,1741803074176,-500.0,0.00023287,2]
[356023174,1741803074186,-500.0,0.00023287,2]
[356023175,1741803074195,-500.0,0.00023287,2]
[356023176,1741803074205,-807.83,0.00023287,2]
[356023177,1741803074215,-500.0,0.00023287,2]
[356023178,1741803074225,-500.0,0.00023287,2]
[356023179,1741803074235,-1443.57,0.00023287,2]
[356023180,1741803074245,-500.0,0.00023287,2]
[356023181,1741803074254,-1939.01,0.00023287,2]
[356023182,1741803074265,-548.82,0.00023287,2]
[356023183,1741803074275,-2519.53,0.0002356,2]
[356023184,1741803074284,-1508.75,0.0002356,2]
[356023185,1741803074296,-966.03,0.0002356,2]
[356023186,1741803074307,-500.0,0.0002356,2]
[356023187,1741803074317,-500.0,0.00023561,2]
[356023188,1741803074327,-500.0,0.00023561,5]
[356023189,1741803074337,-189.46,0.00023561,2]
[356023190,1741803074347,-500.0,0.00023561,2]
[356023191,1741803074357,-500.0,0.00023561,2]
[356023192,1741803074368,-500.0,0.00023561,2]
[356023193,1741803074379,-500.0,0.00023561,2]
[356023194,1741803074390,-500.0,0.00023561,2]
[356023195,1741803074400,-500.0,0.00023561,2]
[356023196,1741803074411,-500.0,0.00023561,2]
[356023197,1741803074421,-500.0,0.00023561,2]
[356023198,1741803074431,-527.25,0.00023561,2]
[356023199,1741803074442,-500.0,0.00023561,2]
[356023200,1741803074452,-500.0,0.00023561,2]
[356023201,1741803074462,-500.0,0.00023561,2]
[356023202,1741803074472,-500.0,0.00023561,2]
[356023203,1741803074482,-500.0,0.00023561,2]
[356023204,1741803074492,-500.0,0.00023561,2]
[356023205,1741803074501,-500.0,0.00023561,2]
[356023206,1741803074511,-500.0,0.00023561,2]
[356023207,1741803074521,-500.0,0.00023561,2]
[356023208,1741803074532,-500.0,0.00023561,2]
[356023209,1741803074545,-500.0,0.00023561,2]
[356023210,1741803074555,-511.82,0.00023561,2]
[356023211,1741803074566,-599.5,0.00023561,2]
[356023212,1741803074576,-632.72,0.00023561,2]
[356023213,1741803074587,-603.18,0.00023561,2]
[356023214,1741803074597,-500.0,0.00023561,2]
[356023215,1741803074766,-500.0,0.00023561,2]
[356023216,1741803074776,-824.96,0.00023561,2]
[356023217,1741803074786,-500.0,0.00023561,2]
[356023218,1741803074799,-500.0,0.00023561,2]
[356023219,1741803074809,-500.0,0.00023561,2]
[356023220,1741803074820,-500.0,0.00023561,2]
[356023221,1741803074831,-625.12,0.00023561,2]
[356023222,1741803074842,-417.36339775,0.00023561,2]
[356023223,1741803074852,-598.42,0.00023561,2]
[356023224,1741803074861,-500.0,0.00023561,2]
[356023225,1741803074871,-500.0,0.00023561,2]
[356023226,1741803074880,-500.0,0.00023561,2]
[356023227,1741803074890,-775.01,0.00023561,2]
[356023228,1741803074899,-500.0,0.00023561,2]
[356023229,1741803074909,-500.0,0.00023561,2]
[356023230,1741803074918,-500.0,0.00023561,2]
[356023231,1741803074928,-1015.78,0.00023561,2]
[356023232,1741803074938,-500.0,0.00023561,2]
[356023233,1741803074947,-500.0,0.00023561,2]
[356023234,1741803074957,-500.0,0.00023561,2]
[356023235,1741803074966,-500.0,0.00023561,2]
[356023236,1741803074976,-1457.49,0.00023561,2]
[356023237,1741803074986,-500.0,0.00023561,2]
[356023238,1741803074996,-500.0,0.00023561,2]
[356023239,1741803075005,-500.0,0.00023561,2]
[356023240,1741803075016,-500.0,0.00023561,2]
[356023241,1741803075026,-635.14421015,0.00023561,2]
[356023242,1741803075036,-1620.15,0.00023561,2]
[356023243,1741803075047,-581.01,0.00023561,2]
[356023244,1741803075057,-2393.9,0.00023561,2]
[356023245,1741803075066,-1636.45,0.00023561,2]
[356023246,1741803075076,-907.13,0.00023561,2]
[356023247,1741803075086,-500.0,0.00023561,2]
[356023248,1741803075095,-500.0,0.00023561,2]
[356023249,1741803075105,-1017.18,0.00023561,2]
[356023250,1741803075115,-500.0,0.00023561,2]
[356023251,1741803075125,-500.0,0.00023561,2]
[356023252,1741803075134,-500.0,0.00023561,2]
[356023253,1741803075145,-500.0,0.00023561,2]
[356023254,1741803075154,-500.0,0.00023561,2]
[356023255,1741803075165,-500.0,0.00023561,2]
[356023256,1741803075179,-500.0,0.00023561,2]
[356023257,1741803075190,-500.0,0.00023561,2]
[356023258,1741803075200,-500.0,0.00023561,2]
[356023259,1741803075211,-994.72,0.00023561,2]
[356023260,1741803075221,-500.0,0.00023561,2]
[356023261,1741803075231,-500.0,0.00023561,2]
[356023262,1741803075240,-500.0,0.00023561,2]
[356023263,1741803075250,-500.0,0.00023561,2]
[356023264,1741803075261,-500.0,0.00023561,2]
[356023265,1741803075272,-1090.97,0.00023561,2]
[356023266,1741803075281,-1098.0,0.00023561,2]
[356023267,1741803075291,-500.0,0.00023561,2]
[356023268,1741803075300,-500.0,0.00023561,2]
[356023269,1741803075310,-651.57,0.00023561,2]
[356023270,1741803075320,-530.88,0.00023561,2]
[356023271,1741803075331,-500.0,0.00023561,2]
[356023272,1741803075341,-500.0,0.00023561,2]
[356023273,1741803075351,-1126.13,0.00023561,2]
[356023274,1741803075363,-747.55,0.00023561,2]
[356023275,1741803075375,-500.0,0.00023561,2]
[356023276,1741803075384,-500.0,0.00023561,2]
[356023277,1741803075394,-530.53,0.00023561,2]
[356023278,1741803075404,-500.0,0.00023561,2]
[356023279,1741803075413,-896.36,0.00023561,2]
[356023280,1741803075423,-500.0,0.00023561,2]
[356023281,1741803075433,-500.0,0.00023561,2]
[356023282,1741803075443,-250.61500891,0.00023561,2]
[356023283,1741803075452,-520.4,0.00023561,2]
[356023284,1741803075461,-500.0,0.00023561,2]
[356023285,1741803075470,-500.0,0.00023561,2]
[356023286,1741803075480,-500.0,0.00023561,2]
[356023287,1741803075490,-1170.9,0.00023561,2]
[356023288,1741803075499,-500.0,0.00023561,2]
[356023289,1741803075509,-500.0,0.00023561,2]
[356023290,1741803075519,-500.0,0.00023561,2]
[356023291,1741803075530,-500.0,0.00023561,2]
[356023292,1741803075541,-500.0,0.00023561,2]
[356023293,1741803075551,-500.0,0.00023561,2]
[356023294,1741803075562,-500.0,0.00023561,2]
[356023295,1741803075572,-500.0,0.00023561,2]
[356023296,1741803075582,-7587.18,0.00023561,2]
[356023297,1741803075592,-500.0,0.00023561,2]
[356023298,1741803075602,-500.0,0.00023561,2]
[356023299,1741803075612,-1902.88,0.00023561,2]
[356023300,1741803075622,-500.0,0.00023561,2]
[356023301,1741803075633,-501.57,0.00023561,2]
[356023302,1741803075643,-500.0,0.00023561,2]
[356023303,1741803075653,-500.0,0.00023561,2]
[356023304,1741803075663,-500.0,0.00023561,2]
[356023305,1741803075673,-500.0,0.00023561,2]
[356023306,1741803075683,-500.0,0.00023561,2]
[356023307,1741803075693,-1238.08,0.00023561,2]
[356023308,1741803075703,-500.0,0.00023561,2]
[356023309,1741803075712,-541.7,0.00023561,2]
[356023310,1741803075722,-1960.99,0.00023561,2]
[356023311,1741803075730,-930.87,0.00023561,2]
[356023312,1741803075740,-500.0,0.00023561,2]
[356023313,1741803075750,-610.11,0.00023561,2]
[356023314,1741803075760,-500.0,0.00023561,2]
[356023315,1741803075770,-1212.43,0.00023561,2]
[356023316,1741803075780,-1233.5,0.00023561,2]
[356023317,1741803075790,-1343.7,0.00023561,2]
[356023318,1741803075800,-1789.61,0.00023561,2]
[356023319,1741803075810,-500.0,0.00023561,2]
[356023320,1741803075820,-500.0,0.00023561,2]
[356023321,1741803075829,-772.1,0.00023561,2]
[356023322,1741803075838,-517.89,0.00023561,2]
[356023323,1741803075848,-1978.58,0.00023561,2]
[356023324,1741803075858,-637.99,0.00023561,2]
[356023325,1741803075868,-1113.5,0.00023561,2]
[356023326,1741803075878,-500.0,0.00023561,2]
[356023327,1741803075888,-2819.17,0.00023561,2]
[356023328,1741803075898,-1464.3,0.00023561,2]
[356023329,1741803075907,-500.0,0.00023561,2]
[356023330,1741803075916,-3228.35,0.00023561,2]
[356023331,1741803075926,-500.0,0.00023561,2]
[356023332,1741803075936,-500.0,0.00023561,2]
[356023333,1741803075945,-500.0,0.00023561,2]
[356023334,1741803075955,-500.0,0.00023561,2]
[356023335,1741803075965,-500.0,0.00023561,2]
[356023336,1741803075975,-500.0,0.00023561,2]
[356023337,1741803075985,-2548.71,0.00023561,2]
[356023338,1741803075996,-1130.93,0.00023561,2]
[356023339,1741803076007,-2046.27,0.00023561,2]
[356023340,1741803076017,-579.67,0.00023561,2]
[356023341,1741803076027,-823.78,0.00023561,2]
[356023342,1741803076038,-1217.5,0.00023561,2]
[356023343,1741803076049,-500.0,0.00023561,2]
[356023344,1741803076059,-981.87,0.00023561,2]
[356023345,1741803076068,-1517.5,0.00023561,2]
[356023346,1741803076078,-987.07,0.00023561,2]
[356023347,1741803076088,-500.0,0.00023561,2]
[356023348,1741803076098,-678.09,0.00023561,2]
[356023349,1741803076108,-16057.6,0.00023561,2]
[356023350,1741803076119,-1075.18,0.00023561,2]
[356023351,1741803076129,-631.59,0.00023561,2]
[356023352,1741803076139,-528.18,0.00023561,2]
[356023353,1741803076149,-856.9,0.00023561,2]
[356023354,1741803076159,-1522.52,0.00023561,2]
[356023355,1741803076170,-500.0,0.00023561,2]
[356023356,1741803076181,-3781.11,0.00023561,2]
[356023357,1741803076191,-500.0,0.00023561,2]
[356023358,1741803076201,-868.04,0.00023561,2]
[356023359,1741803076214,-500.0,0.00023561,2]
[356023360,1741803076225,-743.32,0.00023561,2]
[356023361,1741803076234,-969.48,0.00023561,2]
[356023362,1741803076244,-1685.25,0.00023561,2]
[356023363,1741803076255,-500.0,0.00023561,2]
[356023364,1741803076266,-1975.24,0.00023561,2]
[356023365,1741803076276,-1147.55,0.00023561,2]
[356023366,1741803076286,-1643.42,0.00023561,2]
[356023367,1741803076298,-2905.55,0.00023561,2]
[356023368,1741803076309,-773.13,0.00023561,2]
[356023369,1741803076319,-1000.0,0.00023561,7]
[356023370,1741803076329,-722.49,0.00023561,2]
[356023371,1741803076339,-703.11,0.00023561,2]
[356023372,1741803076349,-4847.4,0.00023561,2]
[356023373,1741803076359,-1469.23,0.00023561,2]
[356023374,1741803076369,-987.14,0.00023561,2]
[356023375,1741803076379,-515.00335241,0.00023561,2]
[356023376,1741803076389,-1198.86,0.00023561,2]
[356023377,1741803076399,-500.0,0.00023561,2]
[356023378,1741803076409,-1433.14,0.00023561,2]
[356023379,1741803076418,-500.0,0.00023561,2]
[356023380,1741803076428,-811.21,0.00023561,2]
[356023381,1741803076438,-500.0,0.00023561,2]
[356023382,1741803076448,-20664.75184435,0.00023561,2]
[356023383,1741803077341,-505.20966882,0.00021917,2]
[356023384,1741803077351,-151.0,0.00021917,2]
[356023385,1741803077361,-151.0,0.00021917,2]
[356023386,1741803077372,-500.0,0.00021917,2]
[356023387,1741803077381,-152.489382,0.00022092,7]
[356023388,1741803077391,-500.0,0.00022191,2]
[356023389,1741803077402,-500.0,0.00022465,2]
[356023390,1741803077412,-500.0,0.00022739,2]
[356023391,1741803077423,-500.0,0.00023013,2]
[356023392,1741803077432,-500.0,0.00023287,2]
[356023393,1741803077442,-540.06633364,0.00023561,2]
[356023394,1741803077840,-500.0,0.00021917,2]
[356023395,1741803077850,-159.0424,0.00022173,7]
[356023465,1741804231998,-162.17,0.000184,2]
[356023468,1741804232012,-150.999999,0.0002,120]
[356023470,1741804232027,-300.0,0.00020539,2]
[356023472,1741804232040,-500.0,0.0002054,2]
[356023473,1741804232053,-500.0,0.0002054,2]
[356023474,1741804232065,-500.0,0.0002054,2]
[356023475,1741804232078,-500.0,0.0002054,2]
[356023476,1741804232091,-500.0,0.0002054,2]
[356023477,1741804232104,-500.0,0.0002054,2]
[356023478,1741804232117,-500.0,0.0002054,2]
[356023479,1741804232129,-500.0,0.0002054,2]
[356023480,1741804232142,-500.0,0.0002054,2]
[356023481,1741804232155,-500.0,0.0002054,2]
[356023482,1741804232168,-500.0,0.0002054,2]
[356023483,1741804232181,-500.0,0.0002054,2]
[356023484,1741804232194,-500.0,0.0002054,2]
[356023485,1741804232206,-500.0,0.0002054,2]
[356023486,1741804232218,-500.0,0.0002054,2]
[356023488,1741804232231,-500.0,0.0002054,2]
[356023489,1741804232242,-287.38022132,0.0002054,2]
[356023490,1741804232255,-500.0,0.0002054,2]
[356023491,1741804232266,-49.8010318,0.0002054,2]
[356023492,1741804232281,-450.1989682,0.0002054,2]
[356023493,1741804232293,-500.0,0.0002054,2]
[356023494,1741804232306,-500.0,0.0002054,2]
[356023495,1741804232317,-500.0,0.0002054,2]
[356023496,1741804232329,-500.0,0.0002054,2]
[356023497,1741804232341,-500.0,0.0002054,2]
[356023498,1741804232353,-24900.0,0.00020541,2]
[356023499,1741804232366,-1645.06936678,0.000208,2]
[356023500,1741804232377,-2434.29677619,0.000209,2]
[356023501,1741804232389,-1000.0,0.00021,21]
[356023502,1741804232401,-500.0,0.0002125,2]
[356023503,1741804232412,-1000.0,0.0002125,2]
[356023504,1741804232424,-500.0,0.0002125,2]
[356023505,1741804232435,-500.0,0.0002125,2]
[356023506,1741804232447,-867.00399541,0.0002125,2]
[356023507,1741804232458,-457.45643288,0.00021516,2]
[356023508,1741804232469,-195.43717994,0.00021516,2]
[356023509,1741804232481,-411.70360183,0.00021516,2]
[356023510,1741804232491,-500.0,0.00021516,2]
[356023511,1741804232502,-294.82672405,0.00021516,2]
[356023512,1741804232514,-42602.8282927,0.00021517,2]
[356023513,1741804232528,-134960.41401748,0.00021517,2]
[356023522,1741804238028,-44436.75768982,0.00021517,2]
[356023523,1741804238038,-500.0,0.00021573,2]
[356023524,1741804238048,-268.11821069,0.00021573,2]
[356023525,1741804238058,-500.0,0.00021573,2]
[356023526,1741804238068,-500.0,0.00021573,2]
[356023527,1741804238078,-504.75740955,0.0002179,2]
[356023528,1741804238088,-7515.99221887,0.00021817,2]
[356023529,1741804238098,-200.0,0.00021852,2]
[356023530,1741804238109,-2434.29677612,0.00021866,3]
[356023531,1741804238119,-499.2198666,0.00021917,2]
[356023532,1741804238128,-500.0,0.00021917,2]
[356023533,1741804238138,-563.21803368,0.00021917,2]
[356023534,1741804238148,-502.00413425,0.00021917,2]
[356023535,1741804238158,-518.10807815,0.00021917,2]
[356023536,1741804238168,-500.0,0.00021917,2]
[356023537,1741804238178,-500.0,0.00021917,2]
[356023538,1741804238188,-500.0,0.00021917,2]
[356023539,1741804238198,-500.0,0.00021917,2]
[356023540,1741804238207,-565.80402665,0.00021917,2]
[356023541,1741804238217,-721.84,0.00021917,2]
[356023542,1741804238226,-500.0,0.00021917,2]
[356023543,1741804238235,-500.0,0.00021917,2]
[356023544,1741804238245,-647.85181414,0.00021917,2]
[356023545,1741804238255,-500.0,0.00021917,2]
[356023546,1741804238264,-500.0,0.00021917,2]
[356023547,1741804238273,-500.0,0.00021917,2]
[356023548,1741804238283,-500.0,0.00021917,2]
[356023549,1741804238292,-500.0,0.00021917,2]
[356023550,1741804238302,-500.0,0.00021917,2]
[356023551,1741804238312,-500.0,0.00021917,2]
[356023552,1741804238321,-500.0,0.00021917,2]
[356023553,1741804238330,-500.0,0.00021917,2]
[356023554,1741804238340,-500.0,0.00021917,2]
[356023555,1741804238349,-500.0,0.00021917,2]
[356023556,1741804238360,-500.0,0.00021917,2]
[356023557,1741804238370,-685.26,0.00021917,2]
[356023558,1741804238379,-500.0,0.00021917,2]
[356023559,1741804238389,-597.27,0.00021917,2]
[356023560,1741804238398,-519.77981328,0.00021917,2]
[356023561,1741804238407,-500.0,0.00021917,2]
[356023562,1741804238417,-500.0,0.00021917,2]
[356023563,1741804238426,-270.838071,0.00021917,2]
[356023564,1741804238436,-520.06302295,0.00021917,2]
[356023565,1741804238445,-513.8267618,0.00021917,2]
[356023566,1741804238455,-500.0,0.00021917,2]
[356023567,1741804238465,-500.0,0.00021917,2]
[356023568,1741804238474,-500.0,0.00021917,2]
[356023569,1741804238483,-513.07621032,0.00021917,2]
[356023570,1741804238492,-595.51670173,0.00021917,2]
[356023571,1741804238501,-516.74929057,0.00021917,2]
[356023572,1741804238511,-500.0,0.00021917,2]
[356023573,1741804238521,-500.0,0.00021917,2]
[356023574,1741804238531,-500.0,0.00021917,2]
[356023575,1741804238540,-500.0,0.00021917,2]
[356023576,1741804238553,-500.0,0.00021917,2]
[356023577,1741804238564,-500.0,0.00021917,2]
[356023578,1741804238574,-500.0,0.00021917,2]
[356023579,1741804238584,-500.0,0.00021917,2]
[356023580,1741804238593,-500.0,0.00021917,2]
[356023581,1741804238603,-200.0,0.00021917,2]
[356023582,1741804238613,-500.0,0.00021917,2]
[356023583,1741804238623,-500.0,0.00021917,2]
[356023584,1741804238634,-500.0,0.00021917,2]
[356023585,1741804238643,-500.0,0.00021917,2]
[356023586,1741804238653,-500.0,0.00021917,2]
[356023587,1741804238663,-500.0,0.00021917,2]
[356023588,1741804238672,-500.0,0.00021917,2]
[356023589,1741804238682,-500.0,0.00021917,2]
[356023590,1741804238691,-500.0,0.00021917,2]
[356023591,1741804238701,-500.0,0.00021917,2]
[356023592,1741804238711,-500.0,0.00021917,2]
[356023593,1741804238720,-500.0,0.00021917,2]
[356023594,1741804238729,-500.0,0.00021917,2]
[356023595,1741804238738,-500.0,0.00021917,2]
[356023596,1741804238748,-500.0,0.00021917,2]
[356023597,1741804238757,-500.0,0.00021917,2]
[356023598,1741804238767,-500.0,0.00021917,2]
[356023599,1741804238777,-500.0,0.00021917,2]
[356023600,1741804238786,-500.0,0.00021917,2]
[356023601,1741804238795,-160.31971926,0.00021917,2]
[356023602,1741804238804,-500.0,0.00021917,2]
[356023603,1741804238814,-514.82313136,0.00021917,2]
[356023604,1741804238823,-500.0,0.00021917,2]
[356023605,1741804238832,-500.0,0.00021917,2]
[356023606,1741804238842,-500.0,0.00021917,2]
[356023607,1741804238851,-500.0,0.00021917,2]
[356023608,1741804238862,-500.0,0.00021917,2]
[356023609,1741804238871,-500.0,0.00021917,2]
[356023610,1741804238881,-500.0,0.00021917,2]
[356023611,1741804238890,-500.0,0.00021917,2]
[356023612,1741804238899,-508.88319553,0.00021917,2]
[356023613,1741804238909,-500.0,0.00021917,2]
[356023614,1741804238919,-500.0,0.00021917,2]
[356023615,1741804238928,-500.0,0.00021917,2]
[356023616,1741804238937,-500.0,0.00021917,2]
[356023617,1741804238947,-500.0,0.00021917,2]
[356023618,1741804238956,-500.0,0.00021917,2]
[356023619,1741804238966,-500.0,0.00021917,2]
[356023620,1741804238975,-500.0,0.00021917,2]
[356023621,1741804238985,-500.0,0.00021917,2]
[356023622,1741804238995,-500.0,0.00021917,2]
[356023623,1741804239004,-500.0,0.00021917,2]
[356023624,1741804239013,-500.0,0.00021917,2]
[356023625,1741804239024,-500.0,0.00021917,2]
[356023626,1741804239034,-506.17,0.00021917,2]
[356023627,1741804239043,-500.0,0.00021917,2]
[356023628,1741804239053,-500.0,0.00021917,2]
[356023629,1741804239063,-499.08584756,0.00021917,2]
[356023630,1741804239072,-523.61,0.00021917,2]
[356023631,1741804239081,-500.0,0.00021917,2]
[356023632,1741804239090,-500.0,0.00021917,2]
[356023633,1741804239100,-500.0,0.00021917,2]
[356023634,1741804239110,-500.0,0.00021917,2]
[356023635,1741804239120,-500.0,0.00021917,2]
[356023636,1741804239129,-500.0,0.00021917,2]
[356023637,1741804239139,-500.0,0.00021917,2]
[356023638,1741804239148,-712.35,0.00021917,2]